fUSD/lending_fUSD_20250804
["ID","MTS","AMOUNT","RATE_DAILY","PERIOD"]
[377259594,1754307055413,-1343.86,0.00038904,2]
[377259595,1754307055423,-400.0,0.00038904,2]
[377259596,1754307055432,-628.82,0.00038904,2]
[377259597,1754307055441,-1242.39,0.00038904,2]
[377259598,1754307055450,-1542.48,0.00038904,2]
[377259599,1754307055460,-876.68,0.00038904,2]
[377259600,1754307055469,-400.0,0.00038904,2]
[377259601,1754307055479,-912.37,0.00038904,2]
[377259602,1754307055488,-400.0,0.00038904,2]
[377259603,1754307055498,-400.0,0.00038904,2]
[377259604,1754307055507,-400.0,0.00038904,2]
[377259605,1754307055516,-400.0,0.00038904,2]
[377259606,1754307055527,-581.56,0.00038904,2]
[377259607,1754307055536,-812.07,0.00038904,2]
[377259608,1754307055545,-400.0,0.00038904,2]
[377259609,1754307055554,-540.98,0.00038904,2]
[377259610,1754307055564,-466.17,0.00038904,2]
[377259611,1754307055573,-400.0,0.00038904,2]
[377259612,1754307055583,-400.0,0.00038904,2]
[377259613,1754307055592,-892.29,0.00038904,2]
[377259614,1754307055602,-512.04,0.00038904,2]
[377259615,1754307055611,-400.0,0.00038904,2]
[377259616,1754307055620,-1204.41,0.00038904,2]
[377259617,1754307055629,-507.62,0.00038904,2]
[377259618,1754307055639,-978.92,0.00038904,2]
[377259619,1754307055649,-2032.62,0.00038904,2]
[377259620,1754307055660,-400.0,0.00038904,2]
[377259621,1754307055670,-483.03,0.00038904,2]
[377259622,1754307055681,-521.9822565,0.00038904,2]
[377259623,1754307055690,-623.34,0.00038904,2]
[377259624,1754307055700,-400.0,0.00038904,2]
[377259625,1754307055709,-400.0,0.00038904,2]
[377259626,1754307055719,-400.0,0.00038904,2]
[377259627,1754307055730,-1282.08,0.00038904,2]
[377259628,1754307055740,-954.63,0.00038904,2]
[377259629,1754307055750,-1000.0,0.00038904,2]
[377259630,1754307055759,-400.0,0.00038904,2]
[377259631,1754307055769,-424.03,0.00038904,2]
[377259632,1754307055780,-266.76,0.00038904,2]
[377259633,1754307055791,-862.61,0.00038904,2]
[377259634,1754307055800,-694.26,0.00038904,2]
[377259635,1754307055809,-920.74,0.00038904,2]
[377259636,1754307055819,-446.01,0.00038904,2]
[377259637,1754307055829,-583.16,0.00038904,2]
[377259638,1754307055838,-400.0,0.00038904,2]
[377259639,1754307055848,-571.07,0.00038904,2]
[377259640,1754307055858,-556.35,0.00038904,2]
[377259641,1754307055867,-400.0,0.00038904,2]
[377259642,1754307055878,-791.02,0.00038904,2]
[377259643,1754307055888,-862.3,0.00038904,2]
[377259644,1754307055898,-400.0,0.00038904,2]
[377259645,1754307055908,-400.0,0.00038904,2]
[377259646,1754307055917,-400.0,0.00038904,2]
[377259647,1754307055927,-400.0,0.00038904,2]
[377259648,1754307055935,-663.93,0.00038904,2]
[377259649,1754307055943,-400.0,0.00038904,2]
[377259650,1754307055951,-958.9,0.00038904,2]
[377259651,1754307055960,-400.0,0.00038904,2]
[377259652,1754307055971,-190.61590809,0.00038904,2]
[377259653,1754307055985,-400.0,0.00038904,2]
[377259654,1754307055994,-481.81,0.00038904,2]
[377259655,1754307056003,-680.83,0.00038904,2]
[377259656,1754307056013,-400.0,0.00038904,2]
[377259657,1754307056022,-414.65,0.00038904,2]
[377259658,1754307056032,-2465.19,0.00038904,2]
[377259659,1754307056041,-2362.47,0.00038904,2]
[377259660,1754307056050,-489.66,0.00038904,2]
[377259661,1754307056059,-838.53,0.00038904,2]
[377259662,1754307056069,-400.0,0.00038904,2]
[377259663,1754307056078,-1047.46,0.00038904,2]
[377259664,1754307056087,-400.0,0.00038904,2]
[377259665,1754307056095,-543.05,0.00038904,2]
[377259666,1754307056103,-1205.09,0.00038904,2]
[377259667,1754307056112,-476.33,0.00038904,2]
[377259668,1754307056121,-400.0,0.00038904,2]
[377259669,1754307056131,-1053.75,0.00038904,2]
[377259670,1754307056140,-445.54,0.00038904,2]
[377259671,1754307056149,-400.0,0.00038904,2]
[377259672,1754307056158,-948.82,0.00038904,2]
[377259673,1754307056167,-400.0,0.00038904,2]
[377259674,1754307056177,-2911.68,0.00038904,2]
[377259675,1754307056186,-2547.72,0.00038904,2]
[377259676,1754307056195,-907.96,0.00038904,2]
[377259677,1754307056205,-900.03,0.00038904,2]
[377259678,1754307056214,-400.0,0.00038904,2]
[377259679,1754307056222,-400.0,0.00038904,2]
[377259680,1754307056231,-461.76,0.00038904,2]
[377259681,1754307056241,-468.49,0.00038904,2]
[377259682,1754307056251,-1003.97,0.00038904,2]
[377259683,1754307056260,-801.26,0.00038904,2]
[377259684,1754307056272,-616.9,0.00038904,2]
[377259685,1754307056283,-747.36,0.00038904,2]
[377259686,1754307056297,-1686.22,0.00038904,2]
[377259687,1754307056311,-400.0,0.00038904,2]
[377259688,1754307056324,-877.94,0.00038904,2]
[377259689,1754307056335,-400.0,0.00038904,2]
[377259690,1754307056346,-521.82,0.00038904,2]
[377259691,1754307056356,-400.0,0.00038904,2]
[377259692,1754307056368,-864.99,0.00038904,2]
[377259693,1754307056380,-982.85,0.00038904,2]
[377259694,1754307056391,-400.0,0.00038904,2]
[377259695,1754307056403,-400.0,0.00038904,2]
[377259696,1754307056415,-792.37,0.00038904,2]
[377259697,1754307056426,-400.0,0.00038904,2]
[377259698,1754307056439,-929.68,0.00038904,2]
[377259699,1754307056451,-400.0,0.00038904,2]
[377259700,1754307056462,-449.71,0.00038904,2]
[377259701,1754307056474,-400.0,0.00038904,2]
[377259702,1754307056485,-400.0,0.00038904,2]
[377259703,1754307056495,-415.04,0.00038904,2]
[377259704,1754307056505,-400.0,0.00038904,2]
[377259705,1754307056517,-892.22,0.00038904,2]
[377259706,1754307056530,-625.39,0.00038904,2]
[377259707,1754307056541,-400.0,0.00038904,2]
[377259708,1754307056553,-400.0,0.00038904,2]
[377259709,1754307056565,-400.0,0.00038904,2]
[377259710,1754307056576,-1082.15,0.00038904,2]
[377259711,1754307056588,-419.27,0.00038904,2]
[377259712,1754307056600,-1261.52,0.00038904,2]
[377259713,1754307056612,-944.85,0.00038904,2]
[377259714,1754307056624,-769.58,0.00038904,2]
[377259715,1754307056636,-400.0,0.00038904,2]
[377259716,1754307056648,-400.0,0.00038904,2]
[377259717,1754307056662,-470.89,0.00038904,2]
[377259718,1754307056676,-867.8,0.00038904,2]
[377259719,1754307056688,-781.34,0.00038904,2]
[377259720,1754307056701,-785.95,0.00038904,2]
[377259721,1754307056713,-400.0,0.00038904,2]
[377259722,1754307056725,-524.27,0.00038904,2]
[377259723,1754307056739,-400.0,0.00038904,2]
[377259724,1754307056750,-938.84,0.00038904,2]
[377259725,1754307056765,-542.14,0.00038904,2]
[377259726,1754307056778,-400.0,0.00038904,2]
[377259727,1754307056790,-400.0,0.00038904,2]
[377259728,1754307056804,-781.06,0.00038904,2]
[377259729,1754307056816,-803.77,0.00038904,2]
[377259730,1754307056828,-867.24,0.00038904,2]
[377259731,1754307056839,-400.0,0.00038904,2]
[377259732,1754307056851,-1067.13,0.00038904,2]
[377259733,1754307056862,-556.09,0.00038904,2]
[377259734,1754307056872,-400.0,0.00038904,2]
[377259735,1754307056882,-400.0,0.00038904,2]
[377259736,1754307056893,-600.36,0.00038904,2]
[377259737,1754307056904,-1075.4,0.00038904,2]
[377259738,1754307056917,-797.64,0.00038904,2]
[377259739,1754307056931,-400.0,0.00038904,2]
[377259740,1754307056943,-400.0,0.00038904,2]
[377259741,1754307056954,-823.92,0.00038904,2]
[377259742,1754307056965,-881.05,0.00038904,2]
[377259743,1754307056975,-400.0,0.00038904,2]
[377259744,1754307056986,-529.61,0.00038904,2]
[377259745,1754307056997,-400.0,0.00038904,2]
[377259746,1754307057010,-400.0,0.00038904,2]
[377259747,1754307057022,-516.88,0.00038904,2]
[377259748,1754307057034,-400.0,0.00038904,2]
[377259749,1754307057044,-2603.08,0.00038904,2]
[377259750,1754307057054,-818.41,0.00038904,2]
[377259751,1754307057065,-400.0,0.00038904,2]
[377259752,1754307057075,-1271.29,0.00038904,2]
[377259753,1754307057087,-1057.37,0.00038904,2]
[377259754,1754307057099,-400.0,0.00038904,2]
[377259755,1754307057109,-400.0,0.00038904,2]
[377259756,1754307057121,-989.85,0.00038904,2]
[377259757,1754307057133,-752.7,0.00038904,2]
[377259758,1754307057144,-400.0,0.00038904,2]
[377259759,1754307057155,-661.82,0.00038904,2]
[377259760,1754307057167,-400.0,0.00038904,2]
[377259761,1754307057178,-400.0,0.00038904,2]
[377259762,1754307057194,-400.0,0.00038904,2]
[377259763,1754307057205,-400.0,0.00038904,2]
[377259764,1754307057217,-400.0,0.00038904,2]
[377259765,1754307057229,-400.0,0.00038904,2]
[377259766,1754307057241,-400.0,0.00038904,2]
[377259767,1754307057254,-593.04,0.00038904,2]
[377259768,1754307057264,-400.0,0.00038904,2]
[377259769,1754307057275,-400.0,0.00038904,2]
[377259770,1754307057286,-895.49,0.00038904,2]
[377259771,1754307057297,-400.0,0.00038904,2]
[377259772,1754307057308,-400.0,0.00038904,2]
[377259773,1754307057319,-441.3,0.00038904,2]
[377259774,1754307057330,-682.64,0.00038904,2]
[377259775,1754307057341,-714.04,0.00038904,2]
[377259776,1754307057352,-2123.51,0.00038904,2]
[377259777,1754307057364,-880.05,0.00038904,2]
[377259778,1754307057375,-400.0,0.00038904,2]
[377259779,1754307057386,-1189.47,0.00038904,2]
[377259780,1754307057397,-400.0,0.00038904,2]
[377259781,1754307057408,-400.0,0.00038904,2]
[377259782,1754307057419,-1415.68,0.00038904,2]
[377259783,1754307057431,-400.0,0.00038904,2]
[377259784,1754307057442,-400.0,0.00038904,2]
[377259785,1754307057453,-400.0,0.00038904,2]
[377259786,1754307057464,-400.0,0.00038904,2]
[377259787,1754307057476,-400.0,0.00038904,2]
[377259788,1754307057486,-1029.18,0.00038904,2]
[377259789,1754307057498,-449.72,0.00038904,2]
[377259790,1754307057509,-521.98,0.00038904,2]
[377259791,1754307057521,-400.0,0.00038904,2]
[377259792,1754307057532,-537.9,0.00038904,2]
[377259793,1754307057542,-5121.24,0.00038904,2]
[377259794,1754307057553,-7149.89,0.00038904,2]
[377259795,1754307057564,-496.27,0.00038904,2]
[377259796,1754307057575,-482.93,0.00038904,2]
[377259797,1754307057586,-589.39,0.00038904,2]
[377259798,1754307057597,-1599.12,0.00038904,2]
[377259799,1754307057608,-728.98,0.00038904,2]
[377259800,1754307057619,-1251.36,0.00038904,2]
[377259801,1754307057630,-400.0,0.00038904,2]
[377259802,1754307057642,-1553.62,0.00038904,2]
[377259803,1754307057655,-734.89,0.00038904,2]
[377259804,1754307057667,-400.0,0.00038904,2]
[377259805,1754307057678,-664.59,0.00038904,2]
[377259806,1754307057690,-400.0,0.00038904,2]
[377259807,1754307057701,-556.67,0.00038904,2]
[377259808,1754307057712,-778.17,0.00038904,2]
[377259809,1754307057724,-400.0,0.00038904,2]
[377259810,1754307057735,-400.0,0.00038904,2]
[377259811,1754307057749,-400.0,0.00038904,2]
[377259812,1754307057760,-400.0,0.00038904,2]
[377259813,1754307057772,-400.0,0.00038904,2]
[377259814,1754307057783,-533.41,0.00038904,2]
[377259815,1754307057794,-400.0,0.00038904,2]
[377259816,1754307057804,-400.0,0.00038904,2]
[377259817,1754307057815,-558.76,0.00038904,2]
[377259818,1754307057826,-400.0,0.00038904,2]
[377259819,1754307057836,-400.0,0.00038904,2]
[377259820,1754307057847,-400.0,0.00038904,2]
[377259821,1754307057858,-873.39,0.00038904,2]
[377259822,1754307057869,-400.0,0.00038904,2]
[377259823,1754307057879,-732.22,0.00038904,2]
[377259824,1754307057890,-400.0,0.00038904,2]
[377259825,1754307057901,-587.54,0.00038904,2]
[377259826,1754307057911,-1134.95,0.00038904,2]
[377259827,1754307057922,-400.0,0.00038904,2]
[377259828,1754307057933,-2674.73,0.00038904,2]
[377259829,1754307057944,-1331.0,0.00038904,2]
[377259830,1754307057955,-400.0,0.00038904,2]
[377259831,1754307057966,-1331.86,0.00038904,2]
[377259832,1754307057976,-547.93,0.00038904,2]
[377259833,1754307057988,-2137.86,0.00038904,2]
[377259834,1754307058001,-400.0,0.00038904,2]
[377259835,1754307058012,-400.0,0.00038904,2]
[377259836,1754307058023,-1548.61,0.00038904,2]
[377259837,1754307058034,-1639.27,0.00038904,2]
[377259838,1754307058044,-400.0,0.00038904,2]
[377259839,1754307058055,-400.0,0.00038904,2]
[377259840,1754307058066,-400.0,0.00038904,2]
[377259841,1754307058076,-400.0,0.00038904,2]
[377259842,1754307058087,-637.5,0.00038904,2]
[377259843,1754307058098,-400.0,0.00038904,2]
[377259844,1754307058108,-505.0,0.00038904,2]
[377259845,1754307058119,-1088.77,0.00038904,2]
[377259846,1754307058130,-1100.75,0.00038904,2]
[377259847,1754307058141,-400.0,0.00038904,2]
[377259848,1754307058152,-1499.25,0.00038904,2]
[377259849,1754307058163,-400.0,0.00038904,2]
[377259850,1754307058173,-496.52,0.00038904,2]
[377259851,1754307058184,-1352.26,0.00038904,2]
[377259852,1754307058198,-2643.96,0.00038904,2]
[377259853,1754307058209,-411.03,0.00038904,2]
[377259854,1754307058219,-400.0,0.00038904,2]
[377259855,1754307058230,-400.0,0.00038904,2]
[377259856,1754307058240,-3717.59,0.00038904,2]
[377259857,1754307058251,-400.0,0.00038904,2]
[377259858,1754307058262,-400.0,0.00038904,2]
[377259859,1754307058273,-1674.1,0.00038904,2]
[377259860,1754307058283,-400.0,0.00038904,2]
[377259861,1754307058294,-2317.11,0.00038904,2]
[377259862,1754307058304,-439.85,0.00038904,2]
[377259863,1754307058314,-400.0,0.00038904,2]
[377259864,1754307058324,-1175.8,0.00038904,2]
[377259865,1754307058335,-902.64,0.00038904,2]
[377259866,1754307058345,-400.0,0.00038904,2]
[377259867,1754307058356,-400.0,0.00038904,2]
[377259868,1754307058372,-400.0,0.00038904,2]
[377259869,1754307058382,-889.46,0.00038904,2]
[377259870,1754307058393,-716.87,0.00038904,2]
[377259871,1754307058404,-3274.38,0.00038904,2]
[377259872,1754307058414,-1218.23,0.00038904,2]
[377259873,1754307058425,-2298.94,0.00038904,2]
[377259874,1754307058436,-1306.33,0.00038904,2]
[377259875,1754307058446,-679.6,0.00038904,2]
[377259876,1754307058456,-400.0,0.00038904,2]
[377259877,1754307058466,-400.0,0.00038904,2]
[377259878,1754307058476,-1060.53,0.00038904,2]
[377259879,1754307058487,-1373.45,0.00038904,2]
[377259880,1754307058497,-1528.27,0.00038904,2]
[377259881,1754307058508,-400.0,0.00038904,2]
[377259882,1754307058518,-400.0,0.00038904,2]
[377259883,1754307058528,-1166.0,0.00038904,2]
[377259884,1754307058538,-843.75,0.00038904,2]
[377259885,1754307058549,-1074.519448,0.00038904,2]
[377259886,1754307058559,-1074.519448,0.00038904,2]
[377259887,1754307058570,-400.0,0.00038904,2]
[377259888,1754307058580,-400.0,0.00038904,2]
[377259889,1754307058591,-400.0,0.00038904,2]
[377259890,1754307058602,-1400.21,0.00038904,2]
[377259891,1754307058613,-766.64,0.00038904,2]
[377259892,1754307058623,-400.0,0.00038904,2]
[377259893,1754307058634,-426.77619122,0.00038904,2]
[377259894,1754307058644,-688.596206,0.00038904,2]
[377259895,1754307058657,-400.0,0.00038904,2]
[377259896,1754307058668,-688.596206,0.00038904,2]
[377259897,1754307058678,-1264.47,0.00038904,2]
[377259898,1754307058689,-1858.26,0.00038904,2]
[377259899,1754307058701,-576.4,0.00038904,2]
[377259900,1754307058711,-516.05,0.00038904,2]
[377259901,1754307059530,-451.12,0.00038904,2]
[377259902,1754307059551,-1560.4,0.00038904,2]
[377259903,1754307059568,-1097.944232,0.00038904,2]
[377259904,1754307059591,-1097.944232,0.00038904,2]
[377259905,1754307059615,-955.21,0.00038904,2]
[377259906,1754307059634,-400.0,0.00038904,2]
[377259907,1754307059646,-400.0,0.00038904,2]
[377259908,1754307059663,-1319.58,0.00038904,2]
[377259909,1754307059673,-400.0,0.00038904,2]
[377259910,1754307059683,-763.75,0.00038904,2]
[377259911,1754307059694,-400.0,0.00038904,2]
[377259912,1754307059704,-400.0,0.00038904,2]
[377259913,1754307059714,-462.11,0.00038904,2]
[377259914,1754307059724,-400.0,0.00038904,2]
[377259915,1754307059735,-400.0,0.00038904,2]
[377259916,1754307059746,-491.54,0.00038904,2]
[377259917,1754307059755,-585.53,0.00038904,2]
[377259918,1754307059764,-400.0,0.00038904,2]
[377259919,1754307059776,-400.0,0.00038904,2]
[377259920,1754307059786,-400.0,0.00038904,2]
[377259921,1754307059797,-3730.41,0.00038904,2]
[377259922,1754307059806,-400.0,0.00038904,2]
[377259923,1754307059817,-400.0,0.00038904,2]
[377259924,1754307059827,-400.0,0.00038904,2]
[377259925,1754307059837,-944.3,0.00038904,2]
[377259926,1754307059847,-400.0,0.00038904,2]
[377259927,1754307059857,-700.29,0.00038904,2]
[377259928,1754307059866,-810.6,0.00038904,2]
[377259929,1754307059876,-2054.28,0.00038904,2]
[377259930,1754307059886,-32828.96,0.00038904,2]
[377259931,1754307059896,-400.0,0.00038904,2]
[377259932,1754307059906,-1224.12,0.00038904,2]
[377259933,1754307059916,-2397.74,0.00038904,2]
[377259934,1754307059926,-2164.55,0.00038904,2]
[377259935,1754307059935,-400.0,0.00038904,2]
[377259936,1754307059945,-400.0,0.00038904,2]
[377259937,1754307059955,-406.1,0.00038904,2]
[377259938,1754307059965,-400.0,0.00038904,2]
[377259939,1754307059975,-400.0,0.00038904,2]
[377259940,1754307059985,-1542.06,0.00038904,2]
[377259941,1754307059995,-1597.87,0.00038904,2]
[377259942,1754307060004,-1458.8,0.00038904,2]
[377259943,1754307060014,-3637.58,0.00038904,2]
[377259944,1754307060024,-400.0,0.00038904,2]
[377259945,1754307060034,-1860.78,0.00038904,2]
[377259946,1754307060045,-2413.69,0.00038904,2]
[377259947,1754307060055,-400.0,0.00038904,2]
[377259948,1754307060065,-542.49,0.00038904,2]
[377259949,1754307060075,-400.0,0.00038904,2]
[377259950,1754307060085,-400.0,0.00038904,2]
[377259951,1754307060095,-526.15,0.00038904,2]
[377259952,1754307060105,-1015.64,0.00038904,2]
[377259953,1754307060115,-400.0,0.00038904,2]
[377259954,1754307060125,-896.59,0.00038904,2]
[377259955,1754307060135,-430.35,0.00038904,2]
[377259956,1754307060145,-742.14,0.00038904,2]
[377259957,1754307060154,-676.4,0.00038904,2]
[377259958,1754307060164,-590.69,0.00038904,2]
[377259959,1754307060174,-400.0,0.00038904,2]
[377259960,1754307060184,-241.9250028,0.00038904,2]
[377259961,1754307060193,-1167.67,0.00038904,2]
[377259962,1754307060203,-693.24,0.00038904,2]
[377259963,1754307060213,-496.16,0.00038904,2]
[377259964,1754307060222,-2247.66,0.00038904,2]
[377259965,1754307060233,-400.0,0.00038904,2]
[377259966,1754307060242,-540.37,0.00038904,2]
[377259967,1754307060252,-400.0,0.00038904,2]
[377259968,1754307060261,-400.0,0.00038904,2]
[377259969,1754307060271,-400.0,0.00038904,2]
[377259970,1754307060281,-400.0,0.00038904,2]
[377259971,1754307060291,-412.31,0.00038904,2]
[377259972,1754307060301,-1670.85,0.00038904,2]
[377259973,1754307060311,-1662.71,0.00038904,2]
[377259974,1754307060321,-3035.75,0.00038904,2]
[377259975,1754307060331,-400.0,0.00038904,2]
[377259976,1754307060341,-551.34,0.00038904,2]
[377259977,1754307060351,-1799.02,0.00038904,2]
[377259978,1754307060360,-2180.52,0.00038904,2]
[377259979,1754307060370,-1680.17,0.00038904,2]
[377259980,1754307060380,-400.0,0.00038904,2]
[377259981,1754307060390,-400.0,0.00038904,2]
[377259982,1754307060399,-902.78,0.00038904,2]
[377259983,1754307060409,-401.71,0.00038904,2]
[377259984,1754307060419,-2280.29,0.00038904,2]
[377259985,1754307060429,-400.0,0.00038904,2]
[377259986,1754307060438,-400.0,0.00038904,2]
[377259987,1754307060448,-400.0,0.00038904,2]
[377259988,1754307060458,-400.0,0.00038904,2]
[377259989,1754307060468,-400.0,0.00038904,2]
[377259990,1754307060478,-539.97,0.00038904,2]
[377259991,1754307060487,-400.0,0.00038904,2]
[377259992,1754307060498,-1028.62,0.00038904,2]
[377259993,1754307060507,-956.34,0.00038904,2]
[377259994,1754307060517,-400.0,0.00038904,2]
[377259995,1754307060526,-400.0,0.00038904,2]
[377259996,1754307060536,-400.0,0.00038904,2]
[377259997,1754307060547,-400.0,0.00038904,2]
[377259998,1754307060557,-400.0,0.00038904,2]
[377259999,1754307060566,-400.0,0.00038904,2]
[377260000,1754307060576,-400.0,0.00038904,2]
[377260001,1754307060586,-400.0,0.00038904,2]
[377260002,1754307060595,-6288.24,0.00038904,2]
[377260003,1754307060605,-400.0,0.00038904,2]
[377260004,1754307060615,-400.0,0.00038904,2]
[377260005,1754307060625,-749.02,0.00038904,2]
[377260006,1754307060634,-400.0,0.00038904,2]
[377260007,1754307060643,-1354.25,0.00038904,2]
[377260008,1754307060657,-1034.95,0.00038904,2]
[377260009,1754307060666,-400.0,0.00038904,2]
[377260010,1754307060676,-400.0,0.00038904,2]
[377260011,1754307060687,-400.0,0.00038904,2]
[377260012,1754307060698,-772.52,0.00038904,2]
[377260013,1754307060708,-400.0,0.00038904,2]
[377260014,1754307060718,-400.0,0.00038904,2]
[377260015,1754307060730,-1372.4,0.00038904,2]
[377260016,1754307060740,-405.34,0.00038904,2]
[377260017,1754307060750,-400.0,0.00038904,2]
[377260018,1754307060759,-401.48430779,0.00038904,2]
[377260019,1754307060769,-777.53,0.00038904,2]
[377260020,1754307060779,-1822.68,0.00038904,2]
[377260021,1754307060789,-400.0,0.00038904,2]
[377260022,1754307060799,-400.0,0.00038904,2]
[377260023,1754307060808,-1400.05,0.00038904,2]
[377260024,1754307060819,-1874.05,0.00038904,2]
[377260025,1754307060838,-1055.55,0.00038904,2]
[377260026,1754307060848,-4561.8,0.00038904,2]
[377260027,1754307060859,-309.72,0.00038904,2]
[377260028,1754307060869,-895.04,0.00038904,2]
[377260029,1754307060880,-473.07,0.00038904,2]
[377260030,1754307060890,-686.05,0.00038904,2]
[377260031,1754307060900,-1022.94,0.00038904,2]
[377260032,1754307060910,-1204.7,0.00038904,2]
[377260033,1754307060920,-400.0,0.00038904,2]
[377260034,1754307060929,-2715.72,0.00038904,2]
[377260035,1754307060939,-1840.46,0.00038904,2]
[377260036,1754307060948,-400.0,0.00038904,2]
[377260037,1754307060958,-2172.9,0.00038904,2]
[377260038,1754307060970,-1340.61,0.00038904,2]
[377260039,1754307060980,-400.0,0.00038904,2]
[377260040,1754307060990,-2041.89,0.00038904,2]
[377260041,1754307061001,-1789.51,0.00038904,2]
[377260042,1754307061011,-1095.94,0.00038904,2]
[377260043,1754307061022,-400.0,0.00038904,2]
[377260044,1754307061032,-400.0,0.00038904,2]
[377260045,1754307061042,-400.0,0.00038904,2]
[377260046,1754307061051,-758.03,0.00038904,2]
[377260047,1754307061061,-400.0,0.00038904,2]
[377260048,1754307061070,-400.0,0.00038904,2]
[377260049,1754307061080,-400.0,0.00038904,2]
[377260050,1754307061089,-527.07,0.00038904,2]
[377260051,1754307061099,-400.0,0.00038904,2]
[377260052,1754307061109,-1103.63,0.00038904,2]
[377260053,1754307061118,-400.0,0.00038904,2]
[377260054,1754307061128,-400.0,0.00038904,2]
[377260055,1754307061137,-544.57,0.00038904,2]
[377260056,1754307061147,-400.0,0.00038904,2]
[377260057,1754307061157,-1640.51,0.00038904,2]
[377260058,1754307061166,-683.03,0.00038904,2]
[377260059,1754307061176,-400.0,0.00038904,2]
[377260060,1754307061186,-400.0,0.00038904,2]
[377260061,1754307061196,-1701.09,0.00038904,2]
[377260062,1754307061205,-1617.39,0.00038904,2]
[377260063,1754307061214,-6692.2,0.00038904,2]
[377260064,1754307061224,-1984.91,0.00038904,2]
[377260065,1754307061233,-402.2295408,0.00038904,2]
[377260066,1754307061243,-1362.62,0.00038904,2]
[377260067,1754307061252,-400.0,0.00038904,2]
[377260068,1754307061262,-807.33,0.00038904,2]
[377260069,1754307061272,-400.0,0.00038904,2]
[377260070,1754307061282,-602.62,0.00038904,2]
[377260071,1754307061291,-1920.03,0.00038904,2]
[377260072,1754307061301,-400.0,0.00038904,2]
[377260073,1754307061311,-462.96,0.00038904,2]
[377260074,1754307061320,-400.0,0.00038904,2]
[377260075,1754307061329,-756.65,0.00038904,2]
[377260076,1754307061339,-400.0,0.00038904,2]
[377260077,1754307061349,-400.0,0.00038904,2]
[377260078,1754307061360,-400.0,0.00038904,2]
[377260079,1754307061370,-400.0,0.00038904,2]
[377260080,1754307061380,-400.0,0.00038904,2]
[377260081,1754307061389,-400.0,0.00038904,2]
[377260082,1754307061399,-1170.37,0.00038904,2]
[377260083,1754307061409,-400.0,0.00038904,2]
[377260084,1754307061419,-815.79,0.00038904,2]
[377260085,1754307061428,-400.0,0.00038904,2]
[377260086,1754307061438,-400.0,0.00038904,2]
[377260087,1754307061447,-1923.03,0.00038904,2]
[377260088,1754307061457,-400.0,0.00038904,2]
[377260089,1754307061467,-400.0,0.00038904,2]
[377260090,1754307061476,-400.0,0.00038904,2]
[377260091,1754307061485,-400.0,0.00038904,2]
[377260092,1754307061495,-419.23,0.00038904,2]
[377260093,1754307061505,-535.87,0.00038904,2]